[Event "IIFL Wealth 4th Mumbai Open"]
[Site "Mumbai"]
[Date "2018.12.30"]
[Round "1"]
[White "Sa, Kannan"]
[Black "Avathanshu, Bhat"]
[Result "1-0"]
[ECO "B40"]
[WhiteElo "2069"]
[BlackElo "1315"]
[Annotator "NA"]
[PlyCount "45"]
[EventDate "2018.12.30"]
[EventType "swiss"]
[EventCountry "IND"]
[SourceTitle "playchess.com"]
[Source "ChessBase"]
[SourceQuality "1"]
[TimeControl "40/5400+30:1800+30"]

1. e4 {[%emt 0:00:04]} c5 {[%emt 0:00:49]} 2. Nf3 {[%emt 0:00:22]} e6 {[%emt 0:00:13]} 3. c3 {[%emt 0:01:45]} Nf6 {[%emt 0:01:59]} 4. d3 {[%emt 0:01:34]} Nc6 {[%emt 0:01:21]} 5. Be2 {[%emt 0:00:46]} d5 {[%emt 0:01:56]} 6. Qc2 {[%emt 0:01:54]} Qc7 {[%emt 0:01:03]} 7. Bg5 {[%emt 0:04:03]} Be7 {[%emt 0:05:15]} 8. Nbd2 {[%emt 0:03:38]} O-O {[%emt 0:06:57]} 9. O-O {[%emt 0:06:31]} b6 {[%emt 0:03:32]} 10. Rfe1 {[%emt 0:02:12]} Nd7 {[%emt 0:08:24]} 11. exd5 {[%emt 0:02:39]} exd5 {[%emt 0:00:25]} 12. d4 {[%emt 0:04:00]} c4 {[%emt 0:01:00]} 13. Bxe7 {[%emt 0:00:36]} Nxe7 {[%emt 0:00:32]} 14. Bxc4 {[%emt 0:00:23]} dxc4 {[%emt 0:00:12]} 15. Rxe7 {[%emt 0:00:12]} Bb7 {[%emt 0:08:19]} 16. Ne5 {[%emt 0:04:04]} Rad8 {[%emt 0:08:53]} 17. Qf5 {[%emt 0:01:35]} Bc8 {[%emt 0:12:11]} 18. Nxf7 {[%emt 0:01:20]} Rde8 {[%emt 0:02:41]} 19. Nh6+ {[%emt 0:02:35]} Kh8 {[%emt 0:00:27]} 20. Rxe8 {[%emt 0:00:18]} Rxe8 {[%emt 0:00:10]} 21. Qf7 {[%emt 0:00:17]} Rf8 {[%emt 0:01:13]} 22. Qg8+ {[%emt 0:00:41]} Rxg8 {[%emt 0:00:13]} 23. Nf7# {[%emt 0:00:02]} 1-0

[Event "IIFL Wealth 4th Mumbai Open"]
[Site "Mumbai"]
[Date "2018.12.30"]
[Round "1"]
[White "Vahdatian, Davood"]
[Black "Mitank, Maru"]
[Result "1-0"]
[ECO "A95"]
[WhiteElo "2036"]
[BlackElo "1312"]
[Annotator "NA"]
[PlyCount "61"]
[EventDate "2018.12.30"]
[EventType "swiss"]
[EventCountry "IND"]
[SourceTitle "playchess.com"]
[Source "ChessBase"]
[SourceQuality "1"]
[TimeControl "40/5400+30:1800+30"]

1. c4 f5 2. Nc3 Nf6 3. d4 e6 4. g3 Be7 5. Bg2 O-O 6. Nf3 d5 7. O-O c6 8. cxd5 exd5 9. Rb1 Nbd7 10. b4 a6 11. a4 b5 12. axb5 axb5 13. Qc2 Nb6 14. Ne5 Bb7 15. Qxf5 Qd6 16. Qc2 Rfc8 17. Bh3 Rd8 18. Nf7 Qc7 19. Be6 Kf8 20. Bf4 Bd6 21. Nxd6 Rxd6 22. Nxb5 Qd8 23. Bxd6+ Ke8 24. Nc7+ Qxc7 25. Bxc7 Nbd7 26. b5 cxb5 27. Rxb5 Ra7 28. Bd6 Ba6 29. Qc6 g6 30. Rb8+ Bc8 31. Rxc8# 1-0

[Event "IIFL Wealth 4th Mumbai Open"]
[Site "Mumbai"]
[Date "2018.12.30"]
[Round "1"]
[White "Thatte, Ashish P"]
[Black "Kunder, Pratik"]
[Result "1-0"]
[ECO "E91"]
[WhiteElo "1957"]
[BlackElo "1300"]
[Annotator "NA"]
[PlyCount "51"]
[EventDate "2018.12.30"]
[EventType "swiss"]
[EventCountry "IND"]
[SourceTitle "playchess.com"]
[Source "ChessBase"]
[SourceQuality "1"]
[TimeControl "40/5400+30:1800+30"]

1. d4 {[%emt 0:00:36]} Nf6 {[%emt 0:00:00]} 2. c4 {[%emt 0:00:23]} d6 {[%emt 0:00:02]} 3. Nc3 {[%emt 0:00:17]} g6 {[%emt 0:02:18]} 4. e4 {[%emt 0:05:08]} Bg7 {[%emt 0:00:08]} 5. Nf3 {[%emt 0:00:15]} O-O {[%emt 0:00:10]} 6. Be2 {[%emt 0:00:09]} Nbd7 {[%emt 0:00:55]} 7. O-O {[%emt 0:03:56]} c6 {[%emt 0:07:28]} 8. Be3 {[%emt 0:08:06]} Qc7 {[%emt 0:02:18]} 9. Qd2 {[%emt 0:05:21]} a6 {[%emt 0:08:04]} 10. Rac1 {[%emt 0:05:03]} e5 {[%emt 0:04:16]} 11. dxe5 {[%emt 0:04:40]} dxe5 {[%emt 0:01:27]} 12. h3 {[%emt 0:08:13]} Re8 {[%emt 0:04:32]} 13. Rfd1 {[%emt 0:01:55]} Bf8 {[%emt 0:02:02]} 14. Qc2 {[%emt 0:07:15]} Nc5 {[%emt 0:03:04]} 15. b4 {[%emt 0:03:32]} Ne6 {[%emt 0:01:14]} 16. c5 {[%emt 0:00:15]} Nh5 {[%emt 0:07:40]} 17. Na4 {[%emt 0:04:03]} Nhf4 {[%emt 0:01:07]} 18. Bf1 {[%emt 0:02:37]} Be7 {[%emt 0:14:24]} 19. Qb2 {[%emt 0:12:16]} Ng5 {[%emt 0:04:53]} 20. Nxe5 {[%emt 0:11:43]} Nfxh3+ {[%emt 0:06:22]} 21. gxh3 {[%emt 0:00:13]} Qxe5 {[%emt 0:00:50]} 22. Qxe5 {[%emt 0:00:10]} Nf3+ {[%emt 0:00:07]} 23. Kg2 {[%emt 0:00:16]} Nxe5 {[%emt 0:00:24]} 24. Nb6 {[%emt 0:00:12]} Rb8 {[%emt 0:03:38]} 25. Nxc8 {[%emt 0:03:39]} Rbxc8 {[%emt 0:00:42]} 26. f4 {[%emt 0:00:10]} 1-0

[Event "IIFL Wealth 4th Mumbai Open"]
[Site "Mumbai"]
[Date "2018.12.30"]
[Round "1"]
[White "Shanmukha, Pulli"]
[Black "Vivaan, Vijay Saraogi"]
[Result "0-1"]
[ECO "A45"]
[WhiteElo "1868"]
[BlackElo "1290"]
[Annotator "NA"]
[PlyCount "58"]
[EventDate "2018.12.30"]
[EventType "swiss"]
[EventCountry "IND"]
[SourceTitle "playchess.com"]
[Source "ChessBase"]
[SourceQuality "1"]
[TimeControl "40/5400+30:1800+30"]

1. d4 Nf6 2. Bf4 e6 3. e3 b6 4. Nd2 Bb7 5. Ngf3 Be7 6. Bd3 c5 7. c3 O-O 8. Qe2 d6 9. h3 Nbd7 10. Bh2 cxd4 11. exd4 Nd5 12. O-O N7f6 13. Rfe1 Nh5 14. g3 Rc8 15. a3 Re8 16. Bb5 Bc6 17. Ba6 Rb8 18. Bd3 Bf8 19. c4 Nc7 20. Ne5 dxe5 21. Qxh5 f5 22. Rxe5 Qxd4 23. Qe2 Rbd8 24. Re3 Qxb2 25. Rb1 Qxa3 26. Bxf5 exf5 27. Nf1 Rxe3 28. Nxe3 Qd3 29. Qe1 Qe4 0-1

[Event "IIFL Wealth 4th Mumbai Open"]
[Site "Mumbai"]
[Date "2018.12.30"]
[Round "1"]
[White "Unni, C. S."]
[Black "Shashank, Chakradhari"]
[Result "0-1"]
[ECO "D11"]
[WhiteElo "1827"]
[BlackElo "1276"]
[Annotator "NA"]
[PlyCount "56"]
[EventDate "2018.12.30"]
[EventType "swiss"]
[EventCountry "IND"]
[SourceTitle "playchess.com"]
[Source "ChessBase"]
[SourceQuality "1"]
[TimeControl "40/5400+30:1800+30"]

1. d4 {[%emt 0:00:00]} d5 {[%emt 0:00:00]} 2. c4 {[%emt 0:00:00]} c6 {[%emt 0:00:07]} 3. Nf3 {[%emt 0:00:00]} Nf6 {[%emt 0:00:08]} 4. g3 {[%emt 0:00:00]} Bf5 {[%emt 0:01:07]} 5. Bg2 {[%emt 0:00:00]} e6 {[%emt 0:00:08]} 6. O-O {[%emt 0:00:06]} Be7 {[%emt 0:00:26]} 7. Nc3 {[%emt 0:00:05]} Nbd7 {[%emt 0:01:07]} 8. b3 {[%emt 0:00:33]} Ne4 {[%emt 0:00:44]} 9. Bb2 {[%emt 0:00:03]} Ndf6 {[%emt 0:13:21]} 10. Ne5 {[%emt 0:00:43]} Nxc3 {[%emt 0:03:41]} 11. Bxc3 {[%emt 0:00:04]} Ne4 {[%emt 0:00:18]} 12. Bb2 {[%emt 0:00:13]} f6 {[%emt 0:04:04]} 13. Nd3 {[%emt 0:00:53]} Ng5 {[%emt 0:05:17]} 14. h4 {[%emt 0:02:54]} Ne4 {[%emt 0:01:04]} 15. e3 {[%emt 0:02:23]} h5 {[%emt 0:04:39]} 16. Bf3 {[%emt 0:01:53]} Qc7 {[%emt 0:05:59]} 17. Kg2 {[%emt 0:02:54]} O-O-O {[%emt 0:11:24]} 18. Bxh5 {[%emt 0:07:53]} g5 {[%emt 0:06:43]} 19. hxg5 {[%emt 0:00:58]} Nxg5 {[%emt 0:05:28]} 20. Bg4 {[%emt 0:05:51]} Be4+ {[%emt 0:03:00]} 21. f3 {[%emt 0:00:03]} Bg6 {[%emt 0:00:27]} 22. cxd5 {[%emt 0:00:41]} f5 {[%emt 0:00:59]} 23. Ne5 {[%emt 0:01:20]} Be8 {[%emt 0:01:59]} 24. f4 {[%emt 0:01:15]} Ne4 {[%emt 0:01:49]} 25. Bf3 {[%emt 0:02:10]} Nxg3 {[%emt 0:01:44]} 26. dxc6 {[%emt 0:04:32]} Bxc6 {[%emt 0:03:27]} 27. Bxc6 {[%emt 0:01:17]} bxc6 {[%emt 0:02:57]} 28. Rc1 {[%emt 0:00:05]} c5 0-1

[Event "IIFL Wealth 4th Mumbai Open"]
[Site "Mumbai"]
[Date "2018.12.30"]
[Round "1"]
[White "Aditya, Varun Gampa"]
[Black "Rane, Parnavi"]
[Result "1-0"]
[ECO "B76"]
[WhiteElo "1809"]
[BlackElo "1273"]
[Annotator "NA"]
[PlyCount "43"]
[EventDate "2018.12.30"]
[EventType "swiss"]
[EventCountry "IND"]
[SourceTitle "playchess.com"]
[Source "ChessBase"]
[SourceQuality "1"]
[TimeControl "40/5400+30:1800+30"]

1. e4 {[%emt 0:00:00]} c5 {[%emt 0:00:00]} 2. Nf3 {[%emt 0:00:34]} d6 {[%emt 0:00:21]} 3. d4 {[%emt 0:01:05]} cxd4 {[%emt 0:00:36]} 4. Nxd4 {[%emt 0:01:26]} Nf6 {[%emt 0:00:41]} 5. Nc3 {[%emt 0:00:20]} g6 {[%emt 0:00:55]} 6. Be3 {[%emt 0:01:30]} Bg7 {[%emt 0:00:36]} 7. f3 O-O {[%emt 0:00:49]} 8. Qd2 {[%emt 0:01:48]} Nc6 {[%emt 0:01:10]} 9. g4 {[%emt 0:01:15]} Be6 10. Nxe6 {[%emt 0:03:14]} fxe6 {[%emt 0:01:42]} 11. Be2 {[%emt 0:01:53]} d5 {[%emt 0:06:28]} 12. g5 {[%emt 0:03:50]} Nxe4 {[%emt 0:05:39]} 13. Nxe4 {[%emt 0:04:13]} dxe4 {[%emt 0:00:21]} 14. fxe4 {[%emt 0:02:28]} Qc7 {[%emt 0:07:32]} 15. O-O-O {[%emt 0:03:21]} Qe5 {[%emt 0:09:21]} 16. c3 {[%emt 0:04:01]} Qxe4 {[%emt 0:05:19]} 17. Bd3 {[%emt 0:06:28]} Qa4 {[%emt 0:07:46]} 18. Kb1 {[%emt 0:03:22]} Ne5 {[%emt 0:09:36]} 19. Qc2 {[%emt 0:01:57]} Qxc2+ {[%emt 0:06:12]} 20. Bxc2 {[%emt 0:01:39]} Ng4 {[%emt 0:04:55]} 21. Bc5 {[%emt 0:01:22]} Rfc8 {[%emt 0:00:35]} 22. Bg1 {[%emt 0:04:36]} 1-0

[Event "IIFL Wealth 4th Mumbai Open"]
[Site "Mumbai"]
[Date "2018.12.30"]
[Round "1"]
[White "Barde, Om"]
[Black "Keshav, Padmanabhan"]
[Result "0-1"]
[ECO "C50"]
[WhiteElo "1801"]
[BlackElo "1272"]
[Annotator "NA"]
[PlyCount "100"]
[EventDate "2018.12.30"]
[EventType "swiss"]
[EventCountry "IND"]
[SourceTitle "playchess.com"]
[Source "ChessBase"]
[SourceQuality "1"]
[TimeControl "40/5400+30:1800+30"]

1. e4 e5 2. Nf3 Nc6 3. Bc4 Bc5 4. d3 h6 5. c3 Nf6 6. h3 d6 7. O-O O-O 8. a4 a5 9. Re1 Re8 10. Qb3 Qe7 11. Nbd2 Be6 12. Nf1 Be3 13. Bxe3 Qd7 14. Bxe6 Qxe6 15. Qb5 Qd7 16. Re2 b6 17. Rae1 Ne7 18. Qb3 Ng6 19. Bc1 Re7 20. Nxe5 dxe5 21. Ng3 Re6 22. Qc2 c6 23. Bd2 b5 24. axb5 cxb5 25. Qc1 Ne7 26. Re3 Kh7 27. Rf3 Qc6 28. Kh2 Rd6 29. Qa1 a4 30. Qb1 Rxd3 31. Qc1 a3 32. bxa3 Rxc3 33. Qb2 Ng6 34. Qb4 Rb3 35. Ne2 Rbxa3 36. Qb1 R3a4 37. Nc1 Qd7 38. Ne2 Qc6 39. Rd1 Qxe4 40. Qxe4 Nxe4 41. Be3 f6 42. g3 b4 43. Nc1 Ra3 44. Rd7 b3 45. Nd3 Nd6 46. Rb7 Nc4 47. Rb6 Nxb6 48. Bc1 e4 49. Bxa3 exd3 50. Rxd3 b2 0-1

[Event "IIFL Wealth 4th Mumbai Open"]
[Site "Mumbai"]
[Date "2018.12.30"]
[Round "1"]
[White "Boramanikar, Tanisha S"]
[Black "Pandit, Harsh"]
[Result "0-1"]
[ECO "C44"]
[WhiteElo "1782"]
[BlackElo "1267"]
[Annotator "NA"]
[PlyCount "102"]
[EventDate "2018.12.30"]
[EventType "swiss"]
[EventCountry "IND"]
[SourceTitle "playchess.com"]
[Source "ChessBase"]
[SourceQuality "1"]
[TimeControl "40/5400+30:1800+30"]

1. e4 {[%emt 0:00:00]} e5 {[%emt 0:00:00]} 2. Nf3 {[%emt 0:00:00]} Nc6 {[%emt 0:00:00]} 3. d4 {[%emt 0:00:00]} exd4 {[%emt 0:00:43]} 4. Bc4 {[%emt 0:00:07]} h6 {[%emt 0:00:59]} 5. O-O {[%emt 0:00:33]} d6 {[%emt 0:01:38]} 6. Nxd4 {[%emt 0:00:42]} Nf6 {[%emt 0:03:20]} 7. Nc3 {[%emt 0:03:38]} Be7 {[%emt 0:03:55]} 8. Nd5 {[%emt 0:04:04]} O-O {[%emt 0:03:19]} 9. Re1 {[%emt 0:02:32]} Ne5 {[%emt 0:03:21]} 10. Bb3 {[%emt 0:01:40]} Bd7 {[%emt 0:06:11]} 11. f4 {[%emt 0:04:52]} Nc6 {[%emt 0:09:40]} 12. Nf3 {[%emt 0:07:53]} Re8 {[%emt 0:12:43]} 13. Bd2 {[%emt 0:07:49]} Bf8 {[%emt 0:10:02]} 14. Nxf6+ {[%emt 0:03:04]} Qxf6 {[%emt 0:03:14]} 15. c3 {[%emt 0:08:59]} Na5 {[%emt 0:10:51]} 16. Bd5 {[%emt 0:12:31]} Bc6 {[%emt 0:09:11]} 17. b3 {[%emt 0:13:12]} b6 {[%emt 0:05:17]} 18. c4 {[%emt 0:02:19]} Bxd5 {[%emt 0:02:02]} 19. cxd5 {[%emt 0:00:19]} Nb7 {[%emt 0:01:03]} 20. Qc2 {[%emt 0:01:54]} Rac8 {[%emt 0:00:45]} 21. b4 {[%emt 0:01:44]} Re7 {[%emt 0:05:18]} 22. Qa4 {[%emt 0:02:40]} Ra8 {[%emt 0:03:21]} 23. Qa6 {[%emt 0:00:56]} Nd8 {[%emt 0:01:24]} 24. Rac1 {[%emt 0:01:49]} Rd7 {[%emt 0:02:06]} 25. Rc4 {[%emt 0:01:48]} Qe7 {[%emt 0:01:01]} 26. Nd4 {[%emt 0:00:27]} g6 {[%emt 0:00:48]} 27. Nb5 {[%emt 0:00:25]} Bg7 {[%emt 0:00:37]} 28. Rec1 {[%emt 0:00:38]} f5 {[%emt 0:00:37]} 29. exf5 {[%emt 0:01:08]} Qe2 {[%emt 0:00:11]} 30. R1c2 {[%emt 0:02:30]} gxf5 {[%emt 0:00:47]} 31. Qa3 {[%emt 0:01:39]} a6 {[%emt 0:00:26]} 32. Nxc7 {[%emt 0:06:51]} Rxc7 {[%emt 0:00:09]} 33. Qc1 {[%emt 0:00:50]} Rxc4 {[%emt 0:00:44]} 34. Rxc4 {[%emt 0:00:02]} Qd3 {[%emt 0:00:38]} 35. Be3 {[%emt 0:00:36]} b5 {[%emt 0:00:26]} 36. Rc7 {[%emt 0:00:47]} Qxd5 {[%emt 0:00:21]} 37. Qe1 {[%emt 0:01:06]} Ne6 {[%emt 0:00:43]} 38. Rc2 {[%emt 0:00:00]} Bd4 {[%emt 0:00:13]} 39. Qg3+ {[%emt 0:00:00]} Kf7 {[%emt 0:00:17]} 40. Rd2 {[%emt 0:00:00]} Bxe3+ {[%emt 0:00:00]} 41. Qxe3 {[%emt 0:01:10]} Qc6 {[%emt 0:02:32]} 42. Re2 {[%emt 0:00:48]} Re8 {[%emt 0:01:32]} 43. Kf2 {[%emt 0:01:24]} Nc7 {[%emt 0:02:25]} 44. Qd3 {[%emt 0:02:00]} Rxe2+ {[%emt 0:00:21]} 45. Qxe2 {[%emt 0:00:09]} Qb6+ {[%emt 0:02:17]} 46. Kg3 {[%emt 0:00:53]} Kg6 {[%emt 0:02:06]} 47. Kh4 {[%emt 0:00:46]} Qg1 {[%emt 0:02:45]} 48. h3 {[%emt 0:01:23]} Qb1 {[%emt 0:05:00]} 49. Qe7 {[%emt 0:00:50]} Qxb4 {[%emt 0:02:15]} 50. g3 {[%emt 0:01:06]} Qc5 {[%emt 0:00:51]} 51. Qd8 {[%emt 0:01:23]} Qd4 {[%emt 0:02:07]} 0-1

[Event "IIFL Wealth 4th Mumbai Open"]
[Site "Mumbai"]
[Date "2018.12.30"]
[Round "1"]
[White "Devesh, Anand Naik"]
[Black "Ghadge, Harsh"]
[Result "1-0"]
[ECO "C77"]
[WhiteElo "1763"]
[BlackElo "1265"]
[Annotator "NA"]
[PlyCount "67"]
[EventDate "2018.12.30"]
[EventType "swiss"]
[EventCountry "IND"]
[SourceTitle "playchess.com"]
[Source "ChessBase"]
[SourceQuality "1"]
[TimeControl "40/5400+30:1800+30"]

1. e4 {[%emt 0:00:00]} e5 {[%emt 0:00:00]} 2. Nf3 {[%emt 0:00:00]} Nc6 {[%emt 0:00:00]} 3. Bb5 {[%emt 0:00:00]} a6 {[%emt 0:00:00]} 4. Ba4 {[%emt 0:00:00]} Nf6 {[%emt 0:00:00]} 5. d3 {[%emt 0:00:00]} b5 {[%emt 0:00:53]} 6. Bb3 {[%emt 0:00:05]} Be7 {[%emt 0:00:40]} 7. a4 {[%emt 0:00:14]} Bb7 {[%emt 0:00:36]} 8. Nc3 {[%emt 0:00:22]} Bb4 {[%emt 0:01:15]} 9. O-O {[%emt 0:01:06]} Bxc3 {[%emt 0:00:38]} 10. bxc3 {[%emt 0:00:07]} O-O {[%emt 0:00:18]} 11. axb5 {[%emt 0:02:37]} axb5 {[%emt 0:00:13]} 12. Rxa8 {[%emt 0:00:09]} Bxa8 {[%emt 0:00:33]} 13. Re1 {[%emt 0:02:31]} Re8 {[%emt 0:05:02]} 14. Ng5 {[%emt 0:01:29]} Re7 {[%emt 0:01:13]} 15. f4 {[%emt 0:01:29]} h6 {[%emt 0:00:26]} 16. Nf3 {[%emt 0:00:20]} d6 {[%emt 0:01:01]} 17. Nh4 {[%emt 0:00:38]} Re8 {[%emt 0:01:10]} 18. fxe5 {[%emt 0:04:00]} dxe5 {[%emt 0:01:42]} 19. Qf3 {[%emt 0:01:33]} Bb7 {[%emt 0:06:01]} 20. Rf1 {[%emt 0:02:44]} h5 {[%emt 0:02:20]} 21. Bg5 {[%emt 0:01:44]} Na5 {[%emt 0:02:46]} 22. Bxf6 {[%emt 0:01:50]} gxf6 {[%emt 0:00:36]} 23. Nf5 {[%emt 0:00:18]} Re6 {[%emt 0:03:23]} 24. Qg3+ {[%emt 0:02:05]} Kf8 {[%emt 0:00:05]} 25. Qg7+ {[%emt 0:00:07]} Ke8 {[%emt 0:00:16]} 26. Qg8+ {[%emt 0:00:09]} Kd7 {[%emt 0:00:04]} 27. Qxf7+ {[%emt 0:00:22]} Re7 {[%emt 0:00:14]} 28. Be6+ {[%emt 0:00:34]} Kc6 {[%emt 0:00:08]} 29. Nxe7+ {[%emt 0:00:29]} Kb6 {[%emt 0:00:07]} 30. Nd5+ {[%emt 0:00:13]} Bxd5 {[%emt 0:00:07]} 31. Bxd5 {[%emt 0:00:05]} c6 {[%emt 0:00:10]} 32. Rxf6 {[%emt 0:00:12]} Kc5 {[%emt 0:00:17]} 33. Qa7+ {[%emt 0:00:21]} Qb6 {[%emt 0:00:17]} 34. Qe7# {[%emt 0:00:12]} 1-0

[Event "IIFL Wealth 4th Mumbai Open"]
[Site "Mumbai"]
[Date "2018.12.30"]
[Round "1"]
[White "Kapadi, Yash"]
[Black "Singh, Kauts"]
[Result "1-0"]
[ECO "A46"]
[WhiteElo "1749"]
[BlackElo "1252"]
[Annotator "NA"]
[PlyCount "33"]
[EventDate "2018.12.30"]
[EventType "swiss"]
[EventCountry "IND"]
[SourceTitle "playchess.com"]
[Source "ChessBase"]
[SourceQuality "1"]
[TimeControl "40/5400+30:1800+30"]

1. d4 {[%emt 0:00:00]} Nf6 {[%emt 0:00:04]} 2. Nf3 {[%emt 0:00:00]} d5 {[%emt 0:00:08]} 3. c4 {[%emt 0:00:00]} e6 {[%emt 0:00:31]} 4. g3 {[%emt 0:00:00]} c6 {[%emt 0:03:57]} 5. Bg2 {[%emt 0:00:00]} Bb4+ {[%emt 0:01:35]} 6. Nbd2 {[%emt 0:00:06]} O-O {[%emt 0:02:41]} 7. O-O {[%emt 0:00:24]} Re8 {[%emt 0:08:56]} 8. a3 {[%emt 0:03:12]} Bf8 {[%emt 0:02:56]} 9. Qc2 {[%emt 0:00:11]} Nbd7 {[%emt 0:04:15]} 10. Rd1 {[%emt 0:02:27]} g6 {[%emt 0:17:14]} 11. e4 {[%emt 0:06:38]} Nxe4 {[%emt 0:04:19]} 12. Nxe4 {[%emt 0:00:49]} dxe4 {[%emt 0:00:17]} 13. Qxe4 {[%emt 0:00:01]} Nf6 {[%emt 0:01:08]} 14. Qh4 {[%emt 0:09:38]} h5 {[%emt 0:06:43]} 15. Bg5 {[%emt 0:01:01]} Bg7 {[%emt 0:00:04]} 16. Nd2 {[%emt 0:02:39]} e5 {[%emt 0:03:35]} 17. Ne4 {[%emt 0:01:48]} 1-0

[Event "IIFL Wealth 4th Mumbai Open"]
[Site "Mumbai"]
[Date "2018.12.30"]
[Round "1"]
[White "Arhan, Chethan Anand"]
[Black "Roy, Aanya"]
[Result "1-0"]
[ECO "D35"]
[WhiteElo "1710"]
[BlackElo "1232"]
[Annotator "NA"]
[PlyCount "137"]
[EventDate "2018.12.30"]
[EventType "swiss"]
[EventCountry "IND"]
[SourceTitle "playchess.com"]
[Source "ChessBase"]
[SourceQuality "1"]
[TimeControl "40/5400+30:1800+30"]

1. d4 {[%emt 0:00:00]} e6 {[%emt 0:00:00]} 2. c4 {[%emt 0:00:00]} d5 {[%emt 0:00:00]} 3. Nc3 {[%emt 0:00:00]} Nf6 {[%emt 0:00:08]} 4. cxd5 {[%emt 0:00:04]} exd5 {[%emt 0:00:37]} 5. Bg5 {[%emt 0:00:08]} Nbd7 {[%emt 0:00:53]} 6. e3 {[%emt 0:00:40]} Be7 {[%emt 0:01:12]} 7. Qc2 {[%emt 0:00:05]} c6 {[%emt 0:00:39]} 8. Bd3 {[%emt 0:00:14]} O-O {[%emt 0:01:16]} 9. Nf3 {[%emt 0:00:17]} Re8 {[%emt 0:02:44]} 10. h3 {[%emt 0:00:43]} Nf8 {[%emt 0:04:06]} 11. Bf4 {[%emt 0:00:33]} Ne6 {[%emt 0:01:22]} 12. Bh2 {[%emt 0:00:39]} g6 {[%emt 0:00:58]} 13. O-O {[%emt 0:00:29]} Ng7 {[%emt 0:00:13]} 14. Rab1 {[%emt 0:04:08]} Bf5 {[%emt 0:03:22]} 15. Bxf5 {[%emt 0:00:50]} Nxf5 {[%emt 0:00:26]} 16. b4 {[%emt 0:01:13]} Bd6 {[%emt 0:06:58]} 17. Bxd6 {[%emt 0:05:06]} Nxd6 {[%emt 0:03:20]} 18. Ne5 {[%emt 0:02:46]} Nd7 {[%emt 0:04:38]} 19. Nxd7 {[%emt 0:10:21]} Qxd7 {[%emt 0:00:24]} 20. a4 {[%emt 0:00:06]} Ne4 {[%emt 0:11:33]} 21. Nxe4 {[%emt 0:04:50]} Rxe4 {[%emt 0:02:37]} 22. b5 {[%emt 0:02:05]} Ree8 {[%emt 0:01:43]} 23. bxc6 {[%emt 0:01:08]} bxc6 {[%emt 0:02:20]} 24. Rfc1 {[%emt 0:00:34]} Rac8 {[%emt 0:04:44]} 25. Qc5 {[%emt 0:04:34]} Qe7 {[%emt 0:09:17]} 26. Rb2 {[%emt 0:02:27]} Qxc5 {[%emt 0:01:08]} 27. Rxc5 {[%emt 0:00:09]} Re7 {[%emt 0:00:29]} 28. Kf1 {[%emt 0:01:04]} Kg7 {[%emt 0:08:44]} 29. Rbc2 {[%emt 0:06:36]} Rec7 {[%emt 0:00:24]} 30. f3 {[%emt 0:00:59]} Kf6 {[%emt 0:06:07]} 31. Ke2 {[%emt 0:03:56]} Ke6 {[%emt 0:00:13]} 32. Rb2 {[%emt 0:00:12]} f6 {[%emt 0:04:03]} 33. a5 {[%emt 0:01:12]} Kd6 {[%emt 0:01:35]} 34. Kd3 {[%emt 0:00:22]} f5 {[%emt 0:04:03]} 35. a6 {[%emt 0:01:34]} Re8 {[%emt 0:00:51]} 36. Rb1 {[%emt 0:01:02]} Rce7 {[%emt 0:00:41]} 37. Re1 {[%emt 0:00:50]} f4 {[%emt 0:00:34]} 38. e4 {[%emt 0:00:24]} Rc7 {[%emt 0:01:18]} 39. e5+ {[%emt 0:00:46]} Kd7 {[%emt 0:01:37]} 40. Rb1 {[%emt 0:00:00]} Rec8 {[%emt 0:00:00]} 41. Rb4 {[%emt 0:01:54]} Ke6 {[%emt 0:02:42]} 42. Rb7 {[%emt 0:06:40]} Kd7 {[%emt 0:04:31]} 43. Rb4 {[%emt 0:04:00]} Ke6 {[%emt 0:00:09]} 44. Rc2 {[%emt 0:03:54]} Kd7 {[%emt 0:05:30]} 45. Rcb2 {[%emt 0:03:29]} g5 {[%emt 0:03:42]} 46. Rb7 {[%emt 0:00:52]} Rxb7 {[%emt 0:00:50]} 47. Rxb7+ {[%emt 0:00:30]} Rc7 {[%emt 0:00:43]} 48. Kc3 {[%emt 0:01:14]} Kd8 {[%emt 0:06:18]} 49. Rxc7 {[%emt 0:01:21]} Kxc7 {[%emt 0:00:01]} 50. Kb4 {[%emt 0:00:01]} Kb6 {[%emt 0:00:40]} 51. e6 {[%emt 0:00:16]} c5+ {[%emt 0:00:20]} 52. dxc5+ {[%emt 0:00:04]} Kc6 {[%emt 0:00:12]} 53. Kc3 {[%emt 0:00:09]} Kc7 {[%emt 0:00:10]} 54. Kd4 {[%emt 0:00:06]} Kc6 {[%emt 0:00:12]} 55. e7 {[%emt 0:00:15]} Kd7 {[%emt 0:00:06]} 56. Kxd5 {[%emt 0:00:03]} Kxe7 {[%emt 0:00:24]} 57. Kc6 {[%emt 0:00:06]} Kd8 {[%emt 0:00:10]} 58. Kb7 {[%emt 0:00:04]} Kd7 {[%emt 0:00:17]} 59. c6+ {[%emt 0:00:01]} Kd8 {[%emt 0:00:10]} 60. c7+ {[%emt 0:00:03]} Kd7 {[%emt 0:00:10]} 61. c8=Q+ {[%emt 0:00:43]} Ke7 {[%emt 0:00:20]} 62. Kxa7 {[%emt 0:00:17]} Kd6 {[%emt 0:00:04]} 63. Kb6 {[%emt 0:00:06]} Ke7 {[%emt 0:00:06]} 64. a7 {[%emt 0:00:04]} Kd6 {[%emt 0:00:19]} 65. a8=Q {[%emt 0:00:08]} Ke5 {[%emt 0:00:05]} 66. Qe4+ {[%emt 0:00:10]} Kf6 {[%emt 0:00:22]} 67. Qee6+ {[%emt 0:00:12]} Kg7 {[%emt 0:00:08]} 68. Qcd7+ {[%emt 0:00:01]} Kh8 {[%emt 0:00:12]} 69. Qee8# {[%emt 0:00:02]} 1-0

[Event "IIFL Wealth 4th Mumbai Open"]
[Site "Mumbai"]
[Date "2018.12.30"]
[Round "1"]
[White "Tamhankar, Siddhant"]
[Black "Gupta, Eshaan"]
[Result "1-0"]
[ECO "B83"]
[WhiteElo "1704"]
[BlackElo "1227"]
[Annotator "NA"]
[PlyCount "57"]
[EventDate "2018.12.30"]
[EventType "swiss"]
[EventCountry "IND"]
[SourceTitle "playchess.com"]
[Source "ChessBase"]
[SourceQuality "1"]
[TimeControl "40/5400+30:1800+30"]

1. e4 {[%emt 0:00:00]} c5 {[%emt 0:00:00]} 2. Nf3 {[%emt 0:00:03]} d6 {[%emt 0:00:20]} 3. d4 {[%emt 0:00:07]} cxd4 {[%emt 0:00:08]} 4. Nxd4 {[%emt 0:00:12]} Nf6 {[%emt 0:00:16]} 5. Nc3 {[%emt 0:00:17]} Nc6 {[%emt 0:00:04]} 6. Be2 {[%emt 0:01:01]} e6 {[%emt 0:01:20]} 7. O-O {[%emt 0:00:25]} a6 {[%emt 0:00:27]} 8. Be3 {[%emt 0:01:03]} Be7 {[%emt 0:01:34]} 9. f4 {[%emt 0:01:23]} Qc7 {[%emt 0:08:44]} 10. Bf3 {[%emt 0:01:21]} Bd7 {[%emt 0:00:41]} 11. Qe1 {[%emt 0:03:02]} O-O {[%emt 0:05:06]} 12. Rd1 {[%emt 0:02:51]} e5 {[%emt 0:06:38]} 13. Nxc6 {[%emt 0:04:42]} Bxc6 {[%emt 0:00:42]} 14. f5 {[%emt 0:00:37]} b5 {[%emt 0:01:26]} 15. g4 {[%emt 0:07:31]} b4 {[%emt 0:03:15]} 16. Nd5 {[%emt 0:01:28]} Bxd5 {[%emt 0:01:44]} 17. exd5 {[%emt 0:00:07]} Qxc2 {[%emt 0:01:43]} 18. Rd2 {[%emt 0:04:00]} Qc7 {[%emt 0:01:07]} 19. g5 {[%emt 0:00:24]} Nd7 {[%emt 0:00:38]} 20. f6 {[%emt 0:01:50]} gxf6 {[%emt 0:05:09]} 21. gxf6 {[%emt 0:00:18]} Bxf6 {[%emt 0:03:57]} 22. Bh6 {[%emt 0:00:19]} Rfe8 {[%emt 0:02:14]} 23. Bg4 {[%emt 0:03:09]} Bg7 {[%emt 0:14:19]} 24. Bxd7 {[%emt 0:00:17]} Bxh6 {[%emt 0:00:16]} 25. Rg2+ {[%emt 0:01:43]} Kh8 {[%emt 0:00:24]} 26. Bxe8 {[%emt 0:10:05]} Rxe8 {[%emt 0:00:04]} 27. Qxb4 {[%emt 0:02:01]} Rb8 {[%emt 0:01:09]} 28. Qh4 {[%emt 0:02:11]} Bf4 {[%emt 0:00:52]} 29. Qf6# {[%emt 0:00:09] Bh6 Qh4 Bg7 Qg5 Rg8 Rc1 Qb6+ Kh1} 1-0